fUST/lending_fUST_20250725
["ID","MTS","AMOUNT","RATE_DAILY","PERIOD"]
[374846754,1753453837975,-998.52,0.00019178,2]
[374846755,1753453837985,-460.0,0.00019178,2]
[374846757,1753453837994,-460.0,0.00019178,2]
[374846758,1753453838004,-463.89688741,0.00019178,2]
[374846759,1753453838014,-460.0,0.00019178,2]
[374846760,1753453838024,-967.52,0.00019178,2]
[374846761,1753453838034,-460.0,0.00019178,2]
[374846762,1753453838044,-460.0,0.00019178,2]
[374846763,1753453838054,-460.0,0.00019178,2]
[374846764,1753453838064,-460.0,0.00019178,2]
[374846765,1753453838074,-460.0,0.00019178,2]
[374846766,1753453838084,-460.0,0.00019178,2]
[374846767,1753453838095,-460.0,0.00019178,2]
[374846768,1753453838105,-460.0,0.00019178,2]
[374846769,1753453838114,-460.0,0.00019178,2]
[374846770,1753453838125,-825.34,0.00019178,2]
[374846771,1753453838135,-817.07,0.00019178,2]
[374846772,1753453838144,-460.0,0.00019178,2]
[374846773,1753453838156,-460.0,0.00019178,2]
[374846775,1753453838166,-460.0,0.00019178,2]
[374846776,1753453838176,-3009.62,0.00019178,2]
[374846777,1753453838186,-460.0,0.00019178,2]
[374846778,1753453838200,-460.0,0.00019178,2]
[374846779,1753453838209,-638.98,0.00019178,2]
[374846780,1753453838219,-460.0,0.00019178,2]
[374846781,1753453838229,-460.0,0.00019178,2]
[374846782,1753453838239,-460.0,0.00019178,2]
[374846783,1753453838248,-460.0,0.00019178,2]
[374846785,1753453838259,-218.75372422,0.00019178,2]
[374846786,1753453838268,-385.8182389,0.00019178,2]
[374846787,1753453838280,-460.0,0.00019178,2]
[374846788,1753453838289,-460.0,0.00019178,2]
[374846789,1753453838299,-460.0,0.00019178,2]
[374846790,1753453838308,-460.0,0.00019178,2]
[374846791,1753453838318,-190.94679065,0.00019178,2]
[374846792,1753453838328,-460.0,0.00019178,2]
[374846793,1753453838338,-200.55341,0.00019178,2]
[374846794,1753453838347,-612.03,0.00019451,2]
[374846795,1753453838357,-460.0,0.00019451,2]
[374846796,1753453838367,-543.9,0.00019451,2]
[374846797,1753453838377,-460.0,0.00019451,2]
[374846798,1753453838387,-934.02,0.00019451,2]
[374846799,1753453838399,-460.0,0.00019451,2]
[374846800,1753453838409,-460.0,0.00019451,2]
[374846801,1753453838418,-811.97,0.00019451,2]
[374846802,1753453838427,-597.23,0.00019451,2]
[374846803,1753453838437,-460.0,0.00019451,2]
[374846804,1753453838447,-460.0,0.00019452,2]
[374846805,1753453838457,-460.0,0.00019452,2]
[374846806,1753453838466,-245.80004186,0.00019452,2]
[374846807,1753453838476,-194.5190875,0.00019452,2]
[374846808,1753453838486,-460.0,0.00019452,2]
[374846810,1753453838495,-460.0,0.00019452,2]
[374846812,1753453838505,-460.0,0.00019452,2]
[374846814,1753453838515,-758.21,0.00019452,2]
[374846816,1753453838525,-460.0,0.00019452,2]
[374846818,1753453838535,-460.0,0.00019452,2]
[374846821,1753453838544,-460.0,0.00019452,2]
[374846823,1753453838554,-460.0,0.00019452,2]
[374846824,1753453838565,-687.7,0.00019452,2]
[374846827,1753453838575,-460.0,0.00019452,2]
[374846829,1753453838585,-460.0,0.00019452,2]
[374846831,1753453838595,-460.0,0.00019452,2]
[374846833,1753453838604,-460.0,0.00019452,2]
[374846835,1753453838614,-998.52,0.00019452,2]
[374846836,1753453838623,-460.0,0.00019452,2]
[374846839,1753453838633,-460.0,0.00019452,2]
[374846841,1753453838643,-967.52,0.00019452,2]
[374846842,1753453838655,-460.0,0.00019452,2]
[374846845,1753453838664,-460.0,0.00019452,2]
[374846847,1753453838674,-460.0,0.00019452,2]
[374846849,1753453838684,-460.0,0.00019452,2]
[374846851,1753453838694,-460.0,0.00019452,2]
[374846852,1753453838703,-460.0,0.00019452,2]
[374846854,1753453838713,-825.34,0.00019452,2]
[374846855,1753453838723,-817.07,0.00019452,2]
[374846857,1753453838733,-460.0,0.00019452,2]
[374846858,1753453838743,-460.0,0.00019452,2]
[374846859,1753453838752,-460.0,0.00019452,2]
[374846861,1753453838762,-3009.62,0.00019452,2]
[374846862,1753453838772,-460.0,0.00019452,2]
[374846863,1753453838782,-460.0,0.00019452,2]
[374846864,1753453838791,-638.98,0.00019452,2]
[374846865,1753453838801,-460.0,0.00019452,2]
[374846866,1753453838811,-460.0,0.00019452,2]
[374846867,1753453838821,-460.0,0.00019452,2]
[374846868,1753453838830,-460.0,0.00019452,2]
[374846869,1753453838840,-460.0,0.00019452,2]
[374846870,1753453838850,-460.0,0.00019452,2]
[374846871,1753453838859,-460.0,0.00019452,2]
[374846872,1753453838870,-460.0,0.00019452,2]
[374846873,1753453838880,-460.0,0.00019452,2]
[374846874,1753453838890,-612.03,0.00019725,2]
[374846875,1753453838901,-460.0,0.00019725,2]
[374846876,1753453838911,-543.9,0.00019725,2]
[374846877,1753453838921,-460.0,0.00019725,2]
[374846878,1753453838931,-934.02,0.00019725,2]
[374846879,1753453838941,-460.0,0.00019725,2]
[374846880,1753453838951,-460.0,0.00019725,2]
[374846881,1753453838960,-811.97,0.00019725,2]
[374846882,1753453838970,-597.23,0.00019725,2]
[374846883,1753453838979,-460.0,0.00019726,2]
[374846884,1753453838989,-460.0,0.00019726,2]
[374846885,1753453838999,-460.0,0.00019726,2]
[374846886,1753453839009,-758.21,0.00019726,2]
[374846887,1753453839019,-460.0,0.00019726,2]
[374846888,1753453839028,-539.26552541,0.00019726,2]
[374846889,1753453839038,-460.0,0.00019726,2]
[374846890,1753453839047,-460.0,0.00019726,2]
[374846891,1753453839058,-687.7,0.00019726,2]
[374846892,1753453839068,-460.0,0.00019726,2]
[374846893,1753453839078,-460.0,0.00019726,2]
[374846894,1753453839088,-460.0,0.00019726,2]
[374846895,1753453839097,-460.0,0.00019726,2]
[374846896,1753453839107,-998.52,0.00019726,2]
[374846897,1753453839117,-460.0,0.00019726,2]
[374846898,1753453839127,-460.0,0.00019726,2]
[374846899,1753453839136,-448.02938388,0.00019726,2]
[374846900,1753453839152,-519.49061612,0.00019726,2]
[374846901,1753453839162,-154.38938388,0.00019726,2]
[374846902,1753453839174,-305.61061612,0.00019726,2]
[374846903,1753453839184,-460.0,0.00019726,2]
[374846904,1753453839197,-460.0,0.00019726,2]
[374846905,1753453839213,-460.0,0.00019726,2]
[374846906,1753453839222,-460.0,0.00019726,2]
[374846907,1753453839232,-134.62279548,0.00019726,2]
[374846908,1753453839269,-336.47856923,0.00019178,2]
[374846909,1753453839281,-123.52143077,0.00019178,2]
[374846910,1753453839291,-291.86720452,0.00019726,2]
[374846911,1753453839390,-825.34,0.00019726,2]
[374846912,1753453839423,-405.01202827,0.00019726,2]
[374846913,1753453839435,-412.05797173,0.00019726,2]
[374846914,1753453839445,-460.0,0.00019726,2]
[374846915,1753453839456,-460.0,0.00019726,2]
[374846916,1753453839466,-2230.47365923,0.00019726,2]
[374846917,1753453839478,-779.14634077,0.00019726,2]
[374846918,1753453839487,-81.02902111,0.00019726,2]
[374846919,1753453839499,-378.97097889,0.00019726,2]
[374846920,1753453839510,-460.0,0.00019726,2]
[374846921,1753453839520,-275.54810861,0.00019726,2]
[374846922,1753453839532,-363.43189139,0.00019726,2]
[374846923,1753453839543,-460.0,0.00019726,2]
[374846924,1753453839554,-460.0,0.00019726,2]
[374846925,1753453839564,-460.0,0.00019726,2]
[374846926,1753453839574,-460.0,0.00019726,2]
[374846927,1753453839583,-460.0,0.00019726,2]
[374846928,1753453839593,-460.0,0.00019726,2]
[374846929,1753453839603,-460.0,0.00019726,2]
[374846930,1753453839613,-460.0,0.00019726,2]
[374846931,1753453839623,-460.0,0.00019726,2]
[374846932,1753453839633,-500.0,0.00019783,2]
[374846933,1753453839643,-500.0,0.00019873,2]
[374846934,1753453839655,-500.0,0.00019873,2]
[374846935,1753453839665,-500.0,0.00019873,2]
[374846936,1753453839675,-501.11919719,0.00019873,2]
[374846937,1753453839685,-500.0,0.00019873,2]
[374846938,1753453839694,-500.0,0.00019873,2]
[374846939,1753453839704,-630.13669362,0.00019873,2]
[374846940,1753453839714,-500.0,0.00019873,2]
[374846941,1753453839725,-500.0,0.00019873,2]
[374846942,1753453839735,-500.0,0.00019873,2]
[374846943,1753453839745,-1173.77839758,0.00019899,2]
[374846944,1753453839755,-165485.04841881,0.000199,2]
[374846945,1753453839765,-612.03,0.00019999,2]
[374846946,1753453839775,-460.0,0.00019999,2]
[374846947,1753453839784,-543.9,0.00019999,2]
[374846948,1753453839794,-460.0,0.00019999,2]
[374846949,1753453839804,-934.02,0.00019999,2]
[374846950,1753453839814,-460.0,0.00019999,2]
[374846951,1753453839825,-460.0,0.00019999,2]
[374846952,1753453839834,-811.97,0.00019999,2]
[374846953,1753453839844,-597.23,0.00019999,2]
[374846954,1753453839854,-460.0,0.0002,2]
[374846955,1753453839864,-460.0,0.0002,2]
[374846956,1753453839875,-423.4382081,0.0002,2]
[374846957,1753453839886,-758.21,0.0002,2]
[374846958,1753453839896,-460.0,0.0002,2]
[374846959,1753453839908,-460.0,0.0002,2]
[374846960,1753453839918,-460.0,0.0002,2]
[374846961,1753453839928,-687.7,0.0002,2]
[374846962,1753453839938,-460.0,0.0002,2]
[374846964,1753453839948,-998.52,0.0002,2]
[374846965,1753453839958,-460.0,0.0002,2]
[374846966,1753453839967,-967.52,0.0002,2]
[374846967,1753453839977,-460.0,0.0002,2]
[374846968,1753453839987,-460.0,0.0002,2]
[374846969,1753453839997,-460.0,0.0002,2]
[374846970,1753453840008,-460.0,0.0002,2]
[374846971,1753453840021,-460.0,0.0002,2]
[374846972,1753453840032,-825.34,0.0002,2]
[374846973,1753453840041,-817.07,0.0002,2]
[374846974,1753453840050,-7214.73084693,0.0002,10]
[374846975,1753453840060,-460.0,0.0002,2]
[374846976,1753453840069,-460.0,0.0002,2]
[374846977,1753453840079,-3009.62,0.0002,2]
[374846978,1753453840088,-460.0,0.0002,2]
[374846979,1753453840097,-638.98,0.0002,2]
[374846980,1753453840107,-460.0,0.0002,2]
[374846981,1753453840116,-516.74170609,0.0002,2]
[374846982,1753453840125,-460.0,0.0002,2]
[374846984,1753453840135,-460.0,0.0002,2]
[374846986,1753453840144,-460.0,0.0002,2]
[374846987,1753453840158,-460.0,0.0002,2]
[374846989,1753453840167,-460.0,0.0002,2]
[374846991,1753453840176,-460.0,0.0002,2]
[374846992,1753453840186,-460.0,0.0002,2]
[374846995,1753453840200,-160.0,0.00020085,2]
[374846996,1753453840212,-356.799559,0.00020187,2]
[374846997,1753453840221,-460.0,0.00020273,2]
[374846998,1753453840231,-758.21,0.00020273,2]
[374846999,1753453840241,-460.0,0.00020273,2]
[374847000,1753453840251,-612.03,0.00020273,2]
[374847002,1753453840261,-460.0,0.00020273,2]
[374847003,1753453840272,-460.0,0.00020273,2]
[374847004,1753453840283,-543.9,0.00020273,2]
[374847005,1753453840293,-687.7,0.00020273,2]
[374847006,1753453840303,-460.0,0.00020273,2]
[374847007,1753453840314,-998.52,0.00020273,2]
[374847008,1753453840324,-934.02,0.00020273,2]
[374847009,1753453840333,-460.0,0.00020273,2]
[374847010,1753453840343,-967.52,0.00020273,2]
[374847011,1753453840353,-460.0,0.00020273,2]
[374847012,1753453840362,-258.44214248,0.00020273,2]
[374847013,1753453840372,-460.0,0.00020273,2]
[374847014,1753453840382,-460.0,0.00020273,2]
[374847015,1753453840391,-460.0,0.00020273,2]
[374847016,1753453840403,-460.0,0.00020273,2]
[374847017,1753453840413,-460.0,0.00020273,2]
[374847018,1753453840423,-825.34,0.00020273,2]
[374847019,1753453840433,-817.07,0.00020273,2]
[374847020,1753453840443,-460.0,0.00020273,2]
[374847021,1753453840452,-460.0,0.00020273,2]
[374847022,1753453840462,-3009.62,0.00020273,2]
[374847023,1753453840471,-460.0,0.00020273,2]
[374847024,1753453840481,-811.97,0.00020273,2]
[374847025,1753453840490,-638.98,0.00020273,2]
[374847026,1753453840500,-170.32,0.00020273,2]
[374847027,1753453840509,-460.0,0.00020273,2]
[374847028,1753453840519,-460.0,0.00020273,2]
[374847029,1753453840528,-460.0,0.00020273,2]
[374847030,1753453840538,-597.23,0.00020273,2]
[374847031,1753453840547,-512.38,0.00020273,2]
[374847032,1753453840556,-460.0,0.00020273,2]
[374847033,1753453840566,-460.0,0.00020273,2]
[374847034,1753453840575,-460.0,0.00020273,2]
[374847035,1753453840585,-282.81442245,0.00020331,2]
[374847036,1753453840596,-1000.0,0.00020421,2]
[374847037,1753453840606,-1000.0,0.00020421,2]
[374847038,1753453840616,-507.57266618,0.00020421,2]
[374847039,1753453840626,-189.96740107,0.00020421,2]
[374847040,1753453840636,-1000.0,0.00020421,2]
[374847043,1753453840646,-524.31518237,0.00020421,2]
[374847045,1753453840656,-1139.9076075,0.00020421,2]
[374847047,1753453840666,-500.0,0.0002047,2]
[374847049,1753453840675,-500.43649988,0.0002047,2]
[374847051,1753453840685,-500.0,0.0002047,2]
[374847053,1753453840695,-500.0,0.0002047,2]
[374847054,1753453840705,-500.0,0.0002047,2]
[374847057,1753453840715,-626.30752255,0.0002047,2]
[374847059,1753453840725,-500.0,0.0002047,2]
[374847060,1753453840734,-500.0,0.0002047,2]
[374847062,1753453840744,-500.0,0.0002047,2]
[374847065,1753453840754,-500.0,0.0002047,2]
[374847067,1753453840763,-500.37542207,0.0002047,2]
[374847069,1753453840773,-411.27,0.00020512,2]
[374847070,1753453840782,-662.34,0.00020538,3]
[374847072,1753453840792,-331.16,0.00020538,3]
[374847075,1753453840801,-758.21,0.00020547,2]
[374847077,1753453840811,-460.0,0.00020547,2]
[374847079,1753453840820,-612.03,0.00020547,2]
[374847080,1753453840830,-460.0,0.00020547,2]
[374847083,1753453840840,-460.0,0.00020547,2]
[374847084,1753453840849,-543.9,0.00020547,2]
[374847087,1753453840859,-687.7,0.00020547,2]
[374847088,1753453840869,-460.0,0.00020547,2]
[374847091,1753453840878,-998.52,0.00020547,2]
[374847093,1753453840888,-934.02,0.00020547,2]
[374847095,1753453840897,-238.87140487,0.00020547,2]
[374847097,1753453840908,-967.52,0.00020547,2]
[374847099,1753453840918,-258.29579809,0.00020547,2]
[374847101,1753453840928,-460.0,0.00020547,2]
[374847103,1753453840938,-460.0,0.00020547,2]
[374847105,1753453840947,-460.0,0.00020547,2]
[374847107,1753453840957,-825.34,0.00020547,2]
[374847109,1753453840967,-817.07,0.00020547,2]
[374847111,1753453840976,-460.0,0.00020547,2]
[374847113,1753453840987,-460.0,0.00020547,2]
[374847115,1753453840997,-3009.62,0.00020547,2]
[374847117,1753453841006,-460.0,0.00020547,2]
[374847119,1753453841016,-811.97,0.00020547,2]
[374847121,1753453841026,-638.98,0.00020547,2]
[374847123,1753453841035,-460.0,0.00020547,2]
[374847125,1753453841044,-597.23,0.00020547,2]
[374847127,1753453841053,-460.0,0.00020547,2]
[374847129,1753453841063,-460.0,0.00020547,2]
[374847131,1753453841072,-171.77479895,0.00020594,2]
[374847133,1753453841082,-600.0,0.00020607,2]
[374847135,1753453841091,-260.0,0.00020633,2]
[374847137,1753453841101,-600.54749216,0.000207,4]
[374847139,1753453841110,-758.21,0.00020821,2]
[374847141,1753453841120,-518.29967448,0.00020821,2]
[374847143,1753453841129,-612.03,0.00020821,2]
[374847145,1753453841140,-460.0,0.00020821,2]
[374847147,1753453841149,-460.0,0.00020821,2]
[374847149,1753453841160,-543.9,0.00020821,2]
[374847151,1753453841170,-687.7,0.00020821,2]
[374847153,1753453841180,-460.0,0.00020821,2]
[374847155,1753453841191,-998.52,0.00020821,2]
[374847157,1753453841204,-934.02,0.00020821,2]
[374847159,1753453841214,-967.52,0.00020821,2]
[374847161,1753453841224,-460.0,0.00020821,2]
[374847163,1753453841234,-460.0,0.00020821,2]
[374847165,1753453841243,-460.0,0.00020821,2]
[374847167,1753453841253,-825.34,0.00020821,2]
[374847169,1753453841262,-817.07,0.00020821,2]
[374847171,1753453841271,-460.0,0.00020821,2]
[374847173,1753453841282,-460.0,0.00020821,2]
[374847174,1753453841292,-3009.62,0.00020821,2]
[374847176,1753453841301,-460.0,0.00020821,2]
[374847178,1753453841310,-811.97,0.00020821,2]
[374847180,1753453841320,-638.98,0.00020821,2]
[374847181,1753453841329,-460.0,0.00020821,2]
[374847183,1753453841339,-597.23,0.00020821,2]
[374847185,1753453841348,-460.0,0.00020821,2]
[374847187,1753453841357,-472.58471755,0.00020863,2]
[374847189,1753453841367,-500.0,0.00020863,2]
[374847191,1753453841376,-500.0,0.00020863,2]
[374847193,1753453841386,-174.76956251,0.00020863,2]
[374847194,1753453841395,-1500.0,0.00020968,2]
[374847196,1753453841404,-1500.0,0.00020968,2]
[374847198,1753453841414,-26138.65798957,0.00021,2]
[374847200,1753453841423,-202.24019077,0.00021,2]
[374847202,1753453841432,-215.93003454,0.00021015,2]
[374847204,1753453841442,-160.0,0.00021015,2]
[374847205,1753453841451,-840.4016166,0.00021015,2]
[374847207,1753453841461,-476.88235691,0.00021015,2]
[374847209,1753453841470,-1006.76194603,0.00021018,2]
[374847211,1753453841479,-1000.0,0.00021018,2]
[374847213,1753453841489,-1000.0,0.00021018,2]
[374847215,1753453841498,-1000.0,0.00021018,2]
[374847217,1753453841507,-1000.0,0.00021018,2]
[374847218,1753453841517,-526.56501023,0.00021018,2]
[374847220,1753453841526,-1000.0,0.00021018,2]
[374847222,1753453841536,-758.21,0.00021095,2]
[374847224,1753453841545,-612.03,0.00021095,2]
[374847226,1753453841555,-460.0,0.00021095,2]
[374847228,1753453841565,-543.9,0.00021095,2]
[374847230,1753453841574,-687.7,0.00021095,2]
[374847231,1753453841583,-460.0,0.00021095,2]
[374847233,1753453841593,-998.52,0.00021095,2]
[374847235,1753453841603,-934.02,0.00021095,2]
[374847237,1753453841613,-967.52,0.00021095,2]
[374847239,1753453841623,-460.0,0.00021095,2]
[374847241,1753453841632,-460.0,0.00021095,2]
[374847243,1753453841641,-825.34,0.00021095,2]
[374847244,1753453841650,-817.07,0.00021095,2]
[374847246,1753453841661,-3009.62,0.00021095,2]
[374847248,1753453841671,-460.0,0.00021095,2]
[374847250,1753453841680,-811.97,0.00021095,2]
[374847252,1753453841689,-638.98,0.00021095,2]
[374847254,1753453841698,-460.0,0.00021095,2]
[374847255,1753453841708,-597.23,0.00021095,2]
[374847257,1753453841717,-300.11,0.00021095,2]
[374847259,1753453841727,-1173.77839758,0.00021124,2]
[374847261,1753453841736,-300.0,0.00021181,2]
[374847263,1753453841746,-178.723,0.00021238,2]
[374847265,1753453841755,-506.13,0.00021238,2]
[374847267,1753453841765,-758.21,0.00021369,2]
[374847268,1753453841774,-612.03,0.00021369,2]
[374847270,1753453841783,-460.0,0.00021369,2]
[374847272,1753453841793,-543.9,0.00021369,2]
[374847274,1753453841803,-687.7,0.00021369,2]
[374847276,1753453841812,-460.0,0.00021369,2]
[374847278,1753453841822,-998.52,0.00021369,2]
[374847280,1753453841831,-934.02,0.00021369,2]
[374847281,1753453841840,-967.52,0.00021369,2]
[374847283,1753453841849,-460.0,0.00021369,2]
[374847285,1753453841858,-460.0,0.00021369,2]
[374847287,1753453841867,-825.34,0.00021369,2]
[374847289,1753453841877,-817.07,0.00021369,2]
[374847291,1753453841886,-3009.62,0.00021369,2]
[374847292,1753453841895,-460.0,0.00021369,2]
[374847294,1753453841907,-811.97,0.00021369,2]
[374847296,1753453841917,-638.98,0.00021369,2]
[374847298,1753453841926,-460.0,0.00021369,2]
[374847300,1753453841936,-597.23,0.00021369,2]
[374847302,1753453841945,-1000.0,0.0002141,2]
[374847304,1753453841954,-1000.0,0.0002141,2]
[374847305,1753453841963,-2219.31768029,0.000215,2]
[374847307,1753453841973,-2000.0,0.00021516,2]
[374847309,1753453841982,-2000.0,0.00021516,2]
[374847311,1753453841992,-758.21,0.00021643,2]
[374847313,1753453842003,-612.03,0.00021643,2]
[374847315,1753453842012,-388.74,0.00021643,2]
[374847317,1753453842022,-543.9,0.00021643,2]
[374847319,1753453842031,-687.7,0.00021643,2]
[374847321,1753453842041,-460.0,0.00021643,2]
[374847322,1753453842051,-998.52,0.00021643,2]
[374847335,1753453842181,-934.02,0.00021643,2]
[374847337,1753453842191,-967.52,0.00021643,2]
[374847339,1753453842204,-574.99804535,0.00021643,2]
[374847341,1753453842214,-460.0,0.00021643,2]
[374847343,1753453842223,-825.34,0.00021643,2]
[374847345,1753453842235,-817.07,0.00021643,2]
[374847347,1753453842246,-3009.62,0.00021643,2]
[374847349,1753453842256,-460.0,0.00021643,2]
[374847351,1753453842268,-811.97,0.00021643,2]
[374847353,1753453842279,-638.98,0.00021643,2]
[374847354,1753453842288,-460.0,0.00021643,2]
[374847356,1753453842298,-597.23,0.00021643,2]
[374847358,1753453842308,-10559.44545926,0.00021739,2]
[374847360,1753453842319,-758.21,0.00021917,2]
[374847362,1753453842328,-612.03,0.00021917,2]
[374847364,1753453842338,-543.9,0.00021917,2]
[374847366,1753453842347,-687.7,0.00021917,2]
[374847368,1753453842357,-479.9,0.00021917,2]
[374847370,1753453842367,-998.52,0.00021917,2]
[374847372,1753453842377,-934.02,0.00021917,2]
[374847374,1753453842391,-967.52,0.00021917,2]
[374847375,1753453842401,-460.0,0.00021917,2]
[374847377,1753453842411,-825.34,0.00021917,2]
[374847379,1753453842424,-817.07,0.00021917,2]
[374847381,1753453842434,-3009.62,0.00021917,2]
[374847383,1753453842443,-460.0,0.00021917,2]
[374847385,1753453842453,-811.97,0.00021917,2]
[374847387,1753453842463,-638.98,0.00021917,2]
[374847389,1753453842473,-460.0,0.00021917,2]
[374847391,1753453842483,-597.23,0.00021917,2]
[374847393,1753453842493,-500.0,0.00021973,2]
[374847395,1753453842503,-1732.29,0.00022,7]
[374847397,1753453842512,-152.0,0.00022,2]
[374847398,1753453842522,-353.12882318,0.00022,2]
[374847400,1753453842532,-51698.33426481,0.00022,2]
[374847402,1753453842542,-551.20971066,0.00022,2]
[374847404,1753453842552,-156.0,0.00022,2]
[374847406,1753453842561,-481.92564782,0.00022064,2]
[374847408,1753453842571,-1000.0,0.00022064,2]
[374847410,1753453842581,-3939.76857556,0.000221,2]
[374847412,1753453842590,-758.21,0.00022191,2]
[374847414,1753453842600,-612.03,0.00022191,2]
[374847416,1753453842611,-543.9,0.00022191,2]
[374847418,1753453842621,-687.7,0.00022191,2]
[374847420,1753453842630,-998.52,0.00022191,2]
[374847422,1753453842640,-934.02,0.00022191,2]
[374847424,1753453842649,-967.52,0.00022191,2]
[374847426,1753453842659,-460.0,0.00022191,2]
[374847428,1753453842669,-825.34,0.00022191,2]
[374847429,1753453842678,-817.07,0.00022191,2]
[374847431,1753453842688,-3009.62,0.00022191,2]
[374847433,1753453842698,-460.0,0.00022191,2]
[374847435,1753453842708,-811.97,0.00022191,2]
[374847437,1753453842718,-638.98,0.00022191,2]
[374847439,1753453842727,-460.0,0.00022191,2]
[374847441,1753453842738,-597.23,0.00022191,2]
[374847443,1753453842748,-3301.33283952,0.00022194,2]
[374847445,1753453842757,-151.0,0.00022251,5]
[374847447,1753453842767,-171.77479895,0.00022332,2]
[374847449,1753453842776,-1173.77839758,0.0002235,2]
[374847451,1753453842786,-822.55,0.00022377,2]
[374847453,1753453842797,-758.21,0.00022465,2]
[374847455,1753453842806,-612.03,0.00022465,2]
[374847457,1753453842815,-543.9,0.00022465,2]
[374847459,1753453842824,-687.7,0.00022465,2]
[374847460,1753453842834,-1429.95,0.00022465,2]
[374847462,1753453842843,-998.52,0.00022465,2]
[374847464,1753453842852,-934.02,0.00022465,2]
[374847466,1753453842861,-967.52,0.00022465,2]
[374847468,1753453842871,-460.0,0.00022465,2]
[374847470,1753453842880,-825.34,0.00022465,2]
[374847472,1753453842890,-817.07,0.00022465,2]
[374847474,1753453842899,-3009.62,0.00022465,2]
[374847476,1753453842908,-460.0,0.00022465,2]
[374847478,1753453842918,-811.97,0.00022465,2]
[374847480,1753453842927,-638.98,0.00022465,2]
[374847482,1753453842938,-460.0,0.00022465,2]
[374847483,1753453842947,-597.23,0.00022465,2]
[374847485,1753453842957,-184213.49325031,0.0002249,7]
[374847495,1753453843037,-20707.33020655,0.0002249,7]
[374847497,1753453843048,-278.655932,0.0002249,7]
[374847499,1753453843058,-151.0,0.0002249,7]
[374847501,1753453843068,-1007.79823175,0.000225,2]
[374847503,1753453843079,-1098.50610844,0.000226,4]
[374847505,1753453843089,-3301.33283952,0.00022683,2]
[374847508,1753453843099,-151.0,0.00022731,5]
[374847512,1753453843112,-758.21,0.00022739,2]
[374847515,1753453843122,-612.03,0.00022739,2]
[374847518,1753453843132,-543.9,0.00022739,2]
[374847521,1753453843141,-687.7,0.00022739,2]
[374847523,1753453843151,-998.52,0.00022739,2]
[374847526,1753453843164,-934.02,0.00022739,2]
[374847529,1753453843174,-967.52,0.00022739,2]
[374847532,1753453843183,-460.0,0.00022739,2]
[374847535,1753453843203,-825.34,0.00022739,2]
[374847538,1753453843218,-817.07,0.00022739,2]
[374847541,1753453843227,-3009.62,0.00022739,2]
[374847544,1753453843237,-460.0,0.00022739,2]
[374847547,1753453843247,-811.97,0.00022739,2]
[374847549,1753453843257,-638.98,0.00022739,2]
[374847551,1753453843267,-460.0,0.00022739,2]
[374847553,1753453843276,-597.23,0.00022739,2]